bitfinex-derivatives/quotes_BNBF0:USTF0_20250331
["timestamp","ask_amount","ask_price","bid_price","bid_amount"]
[1743414687395,0.90356892,588.84,588.12,0.2761737]
[1743414687595,4.70239065,588.83,588.1,0.2761737]
[1743414687790,4.70229103,588.82,588.11,0.27624868]
[1743414688098,4.70225016,588.81,588.12,0.27624868]
[1743414688394,3.18764498,588.82,588.1,0.27624868]
[1743414688395,2.3646542,588.8,588.1,0.27624868]
[1743414688587,2.3646542,588.79,588.11,0.27624868]
[1743414688792,2.3646542,588.78,588.1,0.27624868]
[1743414688991,2.3646542,588.77,588.11,0.27624868]
[1743414689188,2.3646542,588.76,588.1,0.27624868]
[1743414689398,2.3644676,588.75,588.11,0.27624868]
[1743414689591,6.1465301,588.74,588.11,0.27624868]
[1743414689794,6.1465301,588.73,588.12,0.27624868]
[1743414689994,6.1465301,588.72,588.13,0.27624868]
[1743414690191,4.70138043,588.71,588.1,0.27624868]
[1743414690395,4.70138043,588.7,588.1,0.27624868]
[1743414690591,8.56844719,588.69,588.1,0.27624868]
[1743414690792,4.70138043,588.68,588.1,0.27624868]
[1743414690991,1.46108528,588.67,588.09,0.340084]
[1743414691192,2.68710258,588.66,588.09,0.340084]
[1743414691397,1.45952876,588.65,588.09,0.340084]
[1743414691598,1.2260173,588.66,588.09,0.340084]
[1743414691995,2.68652419,588.65,588.09,0.340084]
[1743414692201,1.46050689,588.64,588.09,0.340084]
[1743414692392,1.2260173,588.65,588.09,0.340084]
[1743414692393,1.46050689,588.63,588.09,0.340084]
[1743414692594,1.46050689,588.62,588.09,0.340084]
[1743414692794,1.2260173,588.63,588.09,0.340084]
[1743414693098,1.46071306,588.62,588.09,0.340084]
[1743414693399,1.2260173,588.62,588.09,0.340084]
[1743414693799,1.2260173,588.61,588.09,0.340084]
[1743414694201,1.2260173,588.6,588.09,0.340084]
[1743414694997,1.2260173,588.59,588.09,0.340084]
[1743414695799,1.2260173,588.58,588.09,0.340084]
[1743414696001,1.2260173,588.58,588.1,0.27626874]
[1743414696196,1.2260173,588.58,588.09,0.340084]
[1743414696400,1.2260173,588.57,588.1,0.27626836]
[1743414696695,1.67843932,588.99,588.1,0.27626836]
[1743414696696,1.2260173,588.56,588.1,0.27626836]
[1743414697702,1.2260173,588.55,588.1,0.27626836]
[1743414698204,1.2260173,588.55,588.11,0.27622817]
[1743414698398,0.67931325,588.81,588.09,0.340084]
[1743414698399,3.01879226,588.79,588.1,0.27622817]
[1743414698604,4.70582676,588.78,588.11,0.27622817]
[1743414698799,2.36634775,588.77,588.12,0.27622817]
[1743414699005,2.36633976,588.76,588.1,0.27622817]
[1743414699304,2.36633976,588.75,588.11,0.27622817]
[1743414699506,5.55543817,588.74,588.1,0.27622817]
[1743414699701,5.55543817,588.74,588.11,0.27622817]
[1743414699702,1.46217624,588.73,588.11,0.27622817]
[1743414699900,1.46217624,588.72,588.09,0.340084]
[1743414700099,3.18909841,588.74,588.1,0.27622719]
[1743414700404,3.18909841,588.72,588.1,0.27622719]
[1743414700598,3.18909841,588.73,588.1,0.27622719]
[1743414701309,3.18909841,588.72,588.1,0.27622719]
[1743414702099,2.68847657,588.71,588.1,0.27622719]
[1743414702305,1.46194553,588.7,588.1,0.27622719]
[1743414702499,0.29572599,588.83,588.1,0.27622719]
[1743414702500,1.22657631,588.69,588.1,0.27622719]
[1743414703310,1.46145645,588.68,588.1,0.27622719]
[1743414703605,1.46145645,588.67,588.1,0.27622719]
[1743414703907,5.55329159,588.66,588.1,0.27622719]
[1743414704108,2.36508777,588.65,588.1,0.27622719]
[1743414704302,3.42308396,588.64,587.7,0.27622719]
[1743414704506,2.36503894,588.63,587.71,0.61653108]
[1743414704707,1.46145645,588.62,587.72,0.27622719]
[1743414704909,3.18820382,588.64,587.73,0.6165195]
[1743414705210,3.18820382,588.62,587.74,0.61651371]
[1743414705502,1.46137732,588.61,587.75,0.27622719]
[1743414705707,4.64958114,588.6,587.76,0.27622719]
[1743414705909,1.46122217,588.59,587.77,0.61649634]
[1743414706105,1.46122217,588.58,587.78,0.27622719]
[1743414706307,1.22657631,588.58,587.78,0.27622719]
[1743414706705,1.22657631,588.58,587.79,0.27633135]
[1743414706905,1.22657631,588.58,587.78,0.27633135]
[1743414707107,1.22657631,588.57,587.8,0.27633135]
[1743414707312,1.46120418,588.56,587.81,0.27633135]
[1743414707507,1.46120418,588.55,587.82,0.27633135]
[1743414707708,1.46120418,588.54,587.78,0.27633135]
[1743414708013,1.46120418,588.53,587.79,0.27633135]
[1743414708215,1.46111348,588.52,587.79,0.27633135]
[1743414708409,1.22657631,588.54,587.8,0.61658313]
[1743414708614,1.46106974,588.53,587.81,0.27633135]
[1743414708807,1.22657631,588.53,587.81,0.27633135]
[1743414709513,1.22657631,588.52,587.81,0.27633135]
[1743414709913,1.67843932,588.8,587.81,0.27633135]
[1743414709914,1.22657631,588.51,587.81,0.27633135]
[1743414710112,1.22657631,588.51,587.8,0.34025178]
[1743414710310,1.22657631,588.51,587.81,0.27630304]
[1743414710813,0.29582152,588.69,587.81,0.27630304]
[1743414711014,4.70125374,588.68,587.82,0.27630304]
[1743414711214,2.36406771,588.67,587.83,0.27630304]
[1743414711413,2.36406771,588.66,587.83,0.27630304]
[1743414711613,2.36406771,588.65,587.84,0.27630304]
[1743414711813,2.36406771,588.64,587.81,0.27630304]
[1743414712014,1.46074126,588.63,587.82,0.27630304]
[1743414712209,1.46074126,588.62,587.83,0.27630304]
[1743414712415,1.46074126,588.61,587.84,0.27630304]
[1743414712615,3.18731574,588.61,587.85,0.61652588]
[1743414712911,3.18731574,588.61,587.86,0.61652009]
[1743414713114,1.22589067,588.6,587.87,0.61651431]
[1743414713317,1.22589067,588.6,587.88,0.27630304]
[1743414713515,1.22589067,588.6,587.89,0.27627148]
[1743414713716,1.22589067,588.59,587.89,0.27627148]
[1743414714017,1.22589067,588.59,587.9,0.27627148]
[1743414714417,0.29579261,588.76,587.91,0.27627148]
[1743414714617,6.15167842,588.75,587.91,0.27627148]
[1743414714818,3.80110487,588.74,587.92,0.27627148]
[1743414715018,1.46196341,588.73,587.93,0.27627148]
[1743414715319,3.18893775,588.73,587.94,0.27627148]
[1743414715518,3.18893775,588.73,587.95,0.27627148]
[1743414715818,3.18893775,588.72,587.96,0.27627148]
[1743414716017,3.18893775,588.72,587.97,0.27627148]
[1743414716219,1.67843932,589.01,587.98,0.27627148]
[1743414716413,6.66395975,589.0,587.99,0.27627148]
[1743414716719,6.66395975,588.99,588.0,0.27627148]
[1743414716916,1.66841221,588.93,588.01,0.27627148]
[1743414717115,1.66841221,588.89,587.88,0.27627148]
[1743414717316,6.66395975,588.88,588.02,0.27627148]
[1743414717516,6.66395975,588.87,588.03,0.27627148]
[1743414717713,1.67843932,588.83,587.88,0.27627148]
[1743414717913,6.66395975,588.82,587.89,0.27627148]
[1743414718213,6.66395975,588.81,587.9,0.27627148]
[1743414718418,6.66395975,588.8,587.88,0.27627148]
[1743414718619,6.66395975,588.79,587.89,0.27627148]
[1743414718819,6.66395975,588.78,587.9,0.27635709]
[1743414719119,5.54801772,588.82,587.91,0.27635709]
[1743414719120,6.66395975,588.77,587.91,0.27635709]
[1743414719316,6.66395975,588.76,587.88,0.27635709]
[1743414719512,6.66395975,588.75,587.89,0.27635709]
[1743414719713,6.66395975,588.74,587.88,0.27635709]
[1743414719918,6.15454195,588.73,587.89,0.27635709]
[1743414720113,6.15454195,588.72,587.88,0.27635709]
[1743414720317,0.29581272,588.75,587.9,0.27635709]
[1743414720318,6.15454195,588.71,587.9,0.27635709]
[1743414720517,6.15454195,588.7,587.91,0.27635709]
[1743414720719,6.15454195,588.69,587.88,0.27635709]
[1743414720915,3.8695784,588.73,587.87,0.34021127]
[1743414720916,6.15454195,588.68,587.89,0.27635709]
[1743414721117,4.70737813,588.67,587.9,0.27635709]
[1743414721321,4.70737813,588.66,587.88,0.27635709]
[1743414721617,6.23670991,588.65,587.89,0.27635709]
[1743414721815,2.36713151,588.64,587.88,0.27635709]
[1743414722020,2.36713151,588.63,587.89,0.27635709]
[1743414722322,2.36713151,588.62,587.9,0.27635709]
[1743414722622,2.36713151,588.62,587.87,0.34021127]
[1743414722623,4.70583366,588.61,587.91,0.27635709]
[1743414722820,3.1903601,588.62,587.92,0.27635709]
[1743414722821,3.80135628,588.6,587.92,0.27635709]
[1743414723018,6.15116734,588.59,587.93,0.27635709]
[1743414723217,6.15116734,588.58,587.88,0.27635709]
[1743414723420,6.1487407,588.57,587.89,0.27635709]
[1743414723622,10.01866588,588.56,587.88,0.27635709]
[1743414723823,6.1487407,588.55,587.89,0.27635709]
[1743414724122,10.01866588,588.54,587.88,0.27635709]
[1743414724321,6.1487407,588.53,587.9,0.27635709]
[1743414724516,6.1487407,588.52,587.89,0.27635709]
[1743414724716,6.1487407,588.51,587.9,0.27635709]
[1743414725017,4.70122388,588.5,587.91,0.27635709]
[1743414725219,4.70122388,588.49,587.88,0.27635709]
[1743414725420,2.3640733,588.48,587.89,0.27635709]
[1743414725721,2.3640733,588.47,587.9,0.27635709]
[1743414725917,2.3640733,588.46,587.91,0.27635709]
[1743414726123,2.3640733,588.45,587.92,0.27635709]
[1743414726322,2.3640733,588.44,587.88,0.27635709]
[1743414726522,2.36291869,588.43,587.89,0.27635709]
[1743414726823,1.46071911,588.42,587.9,0.27635709]
[1743414727015,1.46071911,588.41,587.88,0.27635709]
[1743414727220,3.1903601,588.44,587.89,0.27635709]
[1743414727417,1.22706158,588.41,587.89,0.27635709]
[1743414727618,1.22706158,588.41,587.9,0.27635709]
[1743414727917,1.22706158,588.4,587.91,0.27635709]
[1743414728119,1.22706158,588.4,587.92,0.27635709]
[1743414728325,1.22706158,588.39,587.93,0.27635709]
[1743414728525,1.22706158,588.39,587.88,0.27635709]
[1743414729121,1.22706158,588.38,587.88,0.27635709]
[1743414729721,1.22706158,588.37,587.88,0.27635709]
[1743414730924,0.29587811,588.47,587.88,0.27635709]
[1743414730925,1.22706158,588.36,587.88,0.27635709]
[1743414731119,1.22706158,588.36,587.87,0.34021127]
[1743414731323,0.29587811,588.47,587.87,0.34021127]
[1743414731524,1.45847852,588.46,587.87,0.34021127]
[1743414731725,0.29587811,588.47,587.87,0.34021127]
[1743414731726,1.45847852,588.45,587.87,0.34021127]
[1743414731921,1.45847852,588.44,587.87,0.34021127]
[1743414732127,3.18147471,588.45,587.87,0.34021127]
[1743414732324,1.4584507,588.44,587.88,0.2763966]
[1743414732531,1.22364412,588.43,587.88,0.2763966]
[1743414733126,2.68185996,588.42,587.88,0.2763966]
[1743414733328,2.35989878,588.41,587.89,0.2763966]
[1743414733529,2.35989878,588.4,587.49,0.2763966]
[1743414733732,2.35989878,588.39,587.5,0.61682213]
[1743414733931,1.45821584,588.38,587.51,0.34041973]
[1743414734130,1.45821584,588.37,587.52,0.27644076]
[1743414734326,6.64203572,588.36,587.53,0.34040814]
[1743414734529,6.13239451,588.35,587.54,0.27644076]
[1743414734725,6.13239451,588.34,587.54,0.27644076]
[1743414734930,6.13239451,588.33,587.54,0.27644076]
[1743414735131,6.13239451,588.32,587.54,0.27644076]
[1743414735331,6.13239451,588.31,587.54,0.27644076]
[1743414735627,6.13239451,588.3,587.55,0.27657514]
[1743414735830,6.13239451,588.29,587.56,0.27657514]
[1743414736031,6.13239451,588.28,587.57,0.27657514]
[1743414736234,6.13239451,588.27,587.54,0.27657514]
[1743414736426,6.13239451,588.26,587.55,0.27657514]
[1743414736629,6.13239451,588.25,587.56,0.27657514]
[1743414736829,6.13239451,588.24,587.54,0.27657514]
[1743414737029,6.13239451,588.23,587.55,0.27657514]
[1743414737229,4.68901226,588.22,587.55,0.27657514]
[1743414737426,4.68901226,588.21,587.56,0.27657514]
[1743414737629,2.35719291,588.2,587.57,0.27657514]
[1743414737830,2.35719291,588.19,586.59,0.27657514]
[1743414738028,1.45746176,588.18,586.61,0.34094202]
[1743414738228,1.45746176,588.17,586.62,0.27657514]
[1743414738427,1.45746176,588.16,586.64,0.34092458]
[1743414738630,3.18100032,588.18,586.65,0.27657514]
[1743414738827,3.18100032,588.18,586.64,0.34092458]
[1743414739134,1.22364412,588.17,586.65,0.27658878]
[1743414739332,1.22364412,588.17,586.67,0.34090715]
[1743414739532,1.22364412,588.17,586.68,0.27658878]
[1743414739732,1.22364412,588.17,586.69,0.27658878]
[1743414739933,1.22364412,588.16,586.7,0.27658878]
[1743414740133,1.51978787,588.16,586.7,0.27658878]
[1743414740334,0.29614375,588.16,586.72,0.3408781]
[1743414740534,0.29614375,588.16,586.73,0.27658878]
[1743414740833,0.29614375,588.16,586.75,0.34086067]
[1743414741030,0.29614375,588.16,586.76,0.27655058]
[1743414741226,3.03198408,588.37,586.78,0.34084324]
[1743414741431,0.29606439,588.32,586.79,0.27655058]
[1743414741631,0.29606439,588.32,586.81,0.34082582]
[1743414741927,1.21932632,588.31,586.82,0.27655058]
[1743414742136,1.21932632,588.31,586.83,0.27655058]
[1743414742329,1.21932632,588.31,586.85,0.34080259]
[1743414742532,1.21932632,588.3,586.86,0.27655058]
[1743414742731,1.21932632,588.3,586.88,0.34078516]
[1743414742932,1.21932632,588.29,586.89,0.27655058]
[1743414743134,1.21932632,588.29,586.91,0.34076774]
[1743414743327,1.21932632,588.29,586.92,0.27655058]
[1743414743630,1.21932632,588.28,586.94,0.34075033]
[1743414743935,1.21932632,588.28,586.95,0.27655058]
[1743414744234,1.21932632,588.28,586.96,0.27651676]
[1743414744431,1.21932632,588.27,586.98,0.34072711]
[1743414744735,1.21932632,588.27,586.99,0.27651676]
[1743414744927,1.21932632,588.26,587.01,0.34070969]
[1743414745134,1.21932632,588.26,587.02,0.27651676]
[1743414745333,1.21932632,588.26,587.04,0.34069228]
[1743414745534,1.21932632,588.25,587.05,0.27651676]
[1743414745730,1.21932632,588.24,587.07,0.34067487]
[1743414745933,1.21932632,588.24,587.08,0.27651676]
[1743414746132,1.21932632,588.24,587.1,0.34065746]
[1743414746334,1.21932632,588.23,587.11,0.27651676]
[1743414746534,1.21932632,588.23,587.13,0.34064006]
[1743414746830,1.51539071,588.22,587.14,0.27651676]
[1743414747034,1.51539071,588.22,587.15,0.61714521]
[1743414747235,1.51539071,588.22,587.16,0.61713941]
[1743414747434,1.21932632,588.21,587.17,0.34061685]
[1743414747634,1.21932632,588.2,587.18,0.27651714]
[1743414747831,1.21932632,588.2,587.19,0.61712239]
[1743414748136,1.21932632,588.2,587.2,0.61711659]
[1743414748334,1.21932632,588.19,587.21,0.27651714]
[1743414748536,1.21932632,588.19,587.22,0.27651714]
[1743414748734,1.21932632,588.19,587.23,0.61709919]
[1743414748934,1.21932632,588.18,587.24,0.61709339]
[1743414749134,1.21932632,588.18,587.25,0.61708759]
[1743414749332,4.44480078,588.38,587.25,0.61708759]
[1743414749532,6.1179544,588.37,587.26,0.27651714]
[1743414749731,6.1179544,588.37,586.72,2.5552563]
[1743414749732,0.29605179,588.22,587.27,0.61707599]
[1743414749939,2.32622392,588.35,587.28,0.61707019]
[1743414750132,1.21996163,588.21,587.29,0.61706439]
[1743414750338,1.21996163,588.21,587.3,0.6170586]
[1743414750637,1.21996163,588.2,587.31,0.6170528]
[1743414750835,1.21996163,588.2,587.32,0.617047]
[1743414751030,1.21996163,588.2,587.33,0.6170412]
[1743414751235,1.21996163,588.19,587.34,0.6170354]
[1743414751435,1.21996163,588.19,587.35,0.61702961]
[1743414751631,1.21996163,588.19,587.36,0.61702381]
[1743414751830,1.21996163,588.18,587.37,0.27651714]
[1743414752438,0.29603039,588.26,587.37,0.27651714]
[1743414752639,1.45366785,588.25,587.37,0.27651714]
[1743414752839,0.29603039,588.26,587.37,0.27651714]
[1743414753040,1.21966553,588.24,587.37,0.27651714]
[1743414753436,1.45333959,588.23,587.37,0.27651714]
[1743414753741,3.17076608,588.22,587.38,0.27656687]
[1743414753939,3.17076608,588.22,587.39,0.27656687]
[1743414754142,3.17076608,588.21,587.37,0.27656687]
[1743414754342,3.17076608,588.21,587.38,0.27656687]
[1743414754643,3.17076608,588.21,587.39,0.27657325]
[1743414754844,3.17076608,588.21,587.36,0.34050667]
[1743414754845,1.51571732,588.2,587.4,0.27657325]
[1743414755039,1.51571732,588.2,587.37,0.27657325]
[1743414755238,1.51571732,588.2,587.38,0.27657325]
[1743414755439,1.51571732,588.2,587.37,0.27657325]
[1743414755639,1.51571732,588.2,587.38,0.27657325]
[1743414755838,1.21966553,588.19,587.39,0.27657325]
[1743414756144,1.21966553,588.18,587.4,0.27657325]
[1743414756641,1.21966553,588.18,587.41,0.27657325]
[1743414756845,1.21966553,588.17,587.37,0.27657325]
[1743414757045,1.21966553,588.17,587.38,0.27657325]
[1743414757241,1.21966553,588.17,587.37,0.27657325]
[1743414757446,0.68000571,588.3,587.36,0.34050667]
[1743414757447,1.21966553,588.16,587.38,0.27657325]
[1743414757645,1.21966553,588.16,587.39,0.27657325]
[1743414757847,1.21966553,588.16,587.37,0.27657325]
[1743414758050,1.21966553,588.16,587.38,0.27657325]
[1743414758246,0.29604172,588.22,587.37,0.27657325]
[1743414758447,0.29604172,588.22,587.38,0.27657325]
[1743414758746,0.29604172,588.22,587.36,0.34050667]
[1743414758747,1.21861391,588.21,587.39,0.27657325]
[1743414759043,1.21861391,588.21,587.4,0.27657325]
[1743414759248,1.21861391,588.21,587.37,0.27657325]
[1743414759447,1.21861391,588.21,587.36,0.34050667]
[1743414759448,1.21861391,588.21,587.38,0.27657325]
[1743414759747,1.21861391,588.2,587.39,0.27657325]
[1743414759947,1.45239677,588.19,587.37,0.27657325]
[1743414760149,1.45239677,588.18,587.38,0.27657325]
[1743414760349,1.45239677,588.17,587.37,0.27657325]
[1743414760542,1.45264829,588.16,587.37,0.27657325]
[1743414760748,1.21861391,588.19,587.37,0.27657325]
[1743414760948,1.45264506,588.18,587.37,0.27657325]
[1743414761144,1.21861391,588.15,587.37,0.27657325]
[1743414761947,1.21861391,588.14,587.37,0.27657325]
[1743414762746,1.21861391,588.13,587.37,0.27657325]
[1743414763749,1.21861391,588.12,587.37,0.27657325]
[1743414764144,1.21861391,588.11,587.37,0.27657325]
[1743414764748,1.21861391,588.1,587.36,0.34050667]
[1743414764951,1.21861391,588.1,587.37,0.27654463]
[1743414765549,1.21861391,588.09,587.37,0.27654463]
[1743414765946,1.21861391,588.08,587.37,0.27654463]
[1743414766550,1.65971387,588.5,587.37,0.27654463]
[1743414766551,1.21861391,588.07,587.37,0.27654463]
[1743414766746,1.21861391,588.07,587.38,0.27655301]
[1743414766948,1.21861391,588.07,587.37,0.27655301]
[1743414767148,1.21861391,588.06,587.38,0.27655301]
[1743414767351,1.21861391,588.06,587.36,0.34050667]
[1743414767352,1.21861391,588.06,587.37,0.27655301]
[1743414767547,1.21861391,588.06,587.38,0.27655301]
[1743414767747,1.21861391,588.05,587.37,0.27655301]
[1743414767948,1.21861391,588.05,587.36,0.34050667]
[1743414767949,1.21861391,588.05,587.38,0.27655301]
[1743414768148,1.21861391,588.04,587.37,0.27655301]
[1743414768556,1.21861391,588.04,587.38,0.27654428]
[1743414768755,1.21861391,588.04,587.37,0.27654428]
[1743414769257,0.29605305,588.22,587.37,0.27654428]
[1743414769449,1.65971387,588.45,587.37,0.27654428]
[1743414769450,2.35672565,588.21,587.37,0.27654428]
[1743414769650,1.45613935,588.2,587.37,0.27654428]
[1743414769849,4.63275715,588.19,587.37,0.27654428]
[1743414770056,1.45613935,588.18,587.37,0.27654428]
[1743414770256,3.1766178,588.19,587.37,0.27654428]
[1743414770551,1.22177608,588.17,587.38,0.61703935]
[1743414770755,1.22177608,588.17,587.39,0.61703356]
[1743414770951,1.22177608,588.17,587.4,0.27654428]
[1743414771155,1.22177608,588.17,587.41,0.27654428]
[1743414771350,1.22177608,588.16,587.42,0.27654428]
[1743414771550,1.22177608,588.16,587.4,0.27654428]
[1743414771849,1.22177608,588.15,587.41,0.27654428]
[1743414772050,1.22177608,588.15,587.4,0.27654428]
[1743414772350,1.22177608,588.15,587.41,0.27654428]
[1743414772550,0.90106751,588.14,587.4,0.27654428]
[1743414772757,1.22177608,588.14,587.41,0.27654428]
[1743414772955,2.3580789,588.13,587.4,0.27654428]
[1743414773154,1.45696351,588.12,587.41,0.27654428]
[1743414773356,1.45696351,588.11,587.41,0.27654428]
[1743414773655,1.45696351,588.1,587.42,0.27658508]
[1743414773856,1.45696351,588.09,587.4,0.27658508]
[1743414774050,1.22177608,588.09,587.4,0.27658508]
[1743414774750,1.22177608,588.08,587.4,0.27658508]
[1743414774951,1.22177608,588.08,587.39,0.34048928]
[1743414775354,0.29606564,588.13,587.39,0.34048928]
[1743414775656,0.90166486,588.29,587.39,0.34048928]
[1743414775956,5.54215821,588.28,587.39,0.34048928]
[1743414776156,2.36024402,588.27,587.39,0.34048928]
[1743414776358,2.36024402,588.26,587.39,0.34048928]
[1743414776559,1.45857916,588.25,587.39,0.34048928]
[1743414776760,2.36131351,588.24,587.39,0.34048928]
[1743414776961,1.45857916,588.23,587.39,0.34048928]
[1743414777261,2.68239231,588.22,587.39,0.34048928]
[1743414777455,1.45857916,588.21,587.39,0.34048928]
[1743414777657,1.22381315,588.22,587.39,0.34048928]
[1743414777860,1.4595219,588.21,587.39,0.34048928]
[1743414778162,1.22381315,588.2,587.4,0.27658511]
[1743414778659,1.22381315,588.19,587.4,0.27658511]
[1743414779063,1.22381315,588.18,587.4,0.27658511]
[1743414779766,1.22381315,588.17,587.4,0.27658511]
[1743414780164,1.22381315,588.16,587.4,0.27658511]
[1743414781164,1.22381315,588.15,587.4,0.27658511]
[1743414782066,5.02184311,588.14,587.4,0.27658511]
[1743414782365,2.68459582,588.13,587.4,0.27658511]
[1743414782565,1.46078267,588.12,587.4,0.27658511]
[1743414782762,1.46078267,588.11,587.4,0.27658511]
[1743414782971,6.14647561,588.1,587.4,0.27658511]
[1743414783161,6.14647561,588.09,587.4,0.27658511]
[1743414783363,6.14647561,588.08,587.4,0.27658511]
[1743414783559,6.14647561,588.07,586.99,0.27658511]
[1743414783763,6.14664613,588.06,587.0,0.27658511]
[1743414783965,4.70112416,588.05,587.01,0.27658511]
[1743414784167,4.70112416,588.04,587.02,0.27658511]
[1743414784368,4.70125912,588.03,586.99,0.27658511]
[1743414784665,6.14659199,588.02,587.0,0.27658511]
[1743414784969,6.65678471,588.01,587.01,0.27658511]
[1743414785168,6.14659199,588.0,587.02,0.27658511]
[1743414785363,4.70125912,587.99,587.03,0.27658511]
[1743414785667,10.01180385,587.98,587.04,0.27658511]
[1743414785868,5.24313099,587.97,587.05,0.27658511]
[1743414786065,6.14659199,587.96,587.06,0.27658511]
[1743414786265,6.14659199,587.95,586.9,0.27658511]
[1743414786470,5.24313099,587.94,586.91,0.61735285]
[1743414786667,5.24313099,587.93,586.92,0.27658511]
[1743414786869,5.24313099,587.92,586.92,0.27658511]
[1743414787066,6.14659199,587.91,586.92,0.27658511]
[1743414787266,2.34879387,587.9,586.93,0.27674823]
[1743414787466,4.69715836,587.89,586.92,0.27674823]
[1743414787671,4.6962276,587.88,586.92,0.27674823]
[1743414787967,5.5466966,587.87,586.92,0.27674823]
[1743414788271,2.36164461,587.86,586.92,0.27674823]
[1743414788474,2.36164461,587.85,586.93,0.27674823]
[1743414788675,1.45911437,587.84,586.94,0.27674823]
[1743414788871,1.45911437,587.83,586.91,0.34076774]
[1743414789071,1.45966551,587.82,586.92,0.27671922]
[1743414789271,3.18505199,587.84,586.92,0.27671922]
[1743414789472,1.45966502,587.83,586.92,0.27671922]
[1743414789669,1.45966502,587.82,586.92,0.27671922]
[1743414789871,1.45966502,587.81,586.92,0.27671922]
[1743414790068,1.45999438,587.8,586.93,0.34075613]
[1743414790374,0.29623324,587.87,586.94,0.27671922]
[1743414790568,3.23820598,588.04,586.94,0.61746955]
[1743414790774,0.29623955,587.83,586.95,0.27671922]
[1743414791069,2.3624696,588.02,586.95,0.27671922]
[1743414791275,2.3624696,588.01,586.95,0.27671922]
[1743414791474,2.3624696,588.0,586.94,0.34075033]
[1743414791674,2.3624696,587.99,586.94,0.34075033]
[1743414791874,1.45965502,587.98,586.94,0.34075033]
[1743414792075,1.45965502,587.97,586.95,0.27672645]
[1743414792270,3.18450492,587.99,586.96,0.34073872]
[1743414792575,0.29621055,587.97,586.96,0.34073872]
[1743414792974,0.29621055,587.97,586.97,0.27672645]
[1743414793175,0.29621055,587.97,586.98,0.34072711]
[1743414793575,0.29621055,587.97,586.99,0.27672645]
[1743414793770,0.29621055,587.97,587.0,0.3407155]
[1743414793969,0.29621055,587.97,587.01,0.27672645]
[1743414794174,0.29621055,587.97,587.01,0.61743614]
[1743414794370,0.29621055,587.97,587.02,0.27672645]
[1743414794576,1.22574535,587.96,587.03,0.27668539]
[1743414794769,1.22574535,587.96,587.02,0.27668539]
[1743414795174,1.22574535,587.95,587.02,0.27668539]
[1743414796074,0.29621055,587.97,587.02,0.27668539]
[1743414796270,0.29621055,587.97,587.03,0.27667321]
[1743414796473,4.68554344,588.19,587.02,0.27667321]
[1743414796675,6.1446379,588.18,587.03,0.27667321]
[1743414796878,6.1446379,588.17,587.02,0.27667321]
[1743414797179,6.65480992,588.16,587.03,0.27667321]
[1743414797378,6.65480992,588.15,587.03,0.27667321]
[1743414797579,6.65480992,588.14,587.02,0.27667321]
[1743414797779,6.65480992,588.13,587.03,0.27667321]
[1743414797975,6.65480992,588.12,587.01,0.34070969]
[1743414798179,8.32165514,588.11,587.02,0.27668002]
[1743414798479,6.65480992,588.1,587.02,0.27668002]
[1743414798680,6.65480992,588.09,587.02,0.27668002]
[1743414798879,1.65971387,588.06,587.02,0.27668002]
[1743414799076,6.65480992,588.05,587.02,0.27668002]
[1743414799383,6.65480992,588.04,587.02,0.27668002]
[1743414799682,6.65480992,588.03,587.02,0.27668002]
[1743414799980,6.1446379,588.02,587.02,0.27668002]
[1743414800175,6.1446379,588.01,587.02,0.27668002]
[1743414800381,6.1446379,588.0,587.02,0.27668002]
[1743414800582,6.1446379,587.99,587.02,0.27668002]
[1743414800781,6.1446379,587.98,587.02,0.27668002]
[1743414800981,6.1446379,587.97,587.02,0.27668002]
[1743414801181,6.1446379,587.96,587.02,0.27668002]
[1743414801382,6.1446379,587.95,587.01,0.34070969]
[1743414801576,6.1446379,587.94,587.03,0.27675119]
[1743414801782,6.1446379,587.93,587.04,0.27675119]
[1743414801981,6.1446379,587.92,587.05,0.27675119]
[1743414802282,6.1446379,587.91,587.02,0.27675119]
[1743414802477,6.1446379,587.9,587.03,0.27675119]
[1743414802676,10.00836369,587.89,587.02,0.27675119]
[1743414802876,4.69902654,587.88,587.03,0.27675119]
[1743414803084,8.56275233,587.87,587.02,0.27675119]
[1743414803280,4.69902654,587.86,587.04,0.27675119]
[1743414803479,4.69902654,587.85,587.03,0.27675119]
[1743414803679,2.36180649,587.84,587.04,0.27675119]
[1743414803877,2.36180649,587.83,587.02,0.27675119]
[1743414804187,2.36180649,587.82,587.03,0.27675119]
[1743414804377,2.36180649,587.81,587.04,0.27675119]
[1743414804578,2.36180649,587.81,587.01,0.34070969]
[1743414804579,2.36180649,587.8,587.05,0.27675119]
[1743414804878,6.13206259,587.79,587.06,0.27675119]
[1743414805183,6.13206259,587.78,587.07,0.27675119]
[1743414805378,6.13206259,587.77,587.08,0.27675119]
[1743414805684,6.13206259,587.76,587.09,0.27675119]
[1743414805883,6.13206259,587.75,586.55,0.27675119]
[1743414806081,9.99617283,587.74,586.56,0.61772227]
[1743414806281,6.13206259,587.73,586.57,0.61771646]
[1743414806479,6.642569,587.72,586.58,0.27675119]
[1743414806679,6.642569,587.71,586.59,0.27694113]
[1743414806882,6.642569,587.7,586.58,0.27694113]
[1743414807080,6.642569,587.69,586.59,0.27694113]
[1743414807284,10.50667924,587.68,586.6,0.34094783]
[1743414807480,4.69122061,587.67,586.61,0.27694113]